bitfinex-derivatives/quotes_ETHF0:USTF0_20210407
["timestamp","ask_amount","ask_price","bid_price","bid_amount"]
[1617762671702,0.909,2103.6,2103.5,17.17638652]
[1617762673302,0.422,2103.6,2103.5,17.17638652]
[1617762674002,0.422,2103.6,2103.5,11.1386]
[1617762674802,0.422,2103.6,2103.5,17.17568172]
[1617762675904,0.422,2103.6,2103.5,11.1386]
[1617762677805,0.422,2103.6,2103.5,17.17364329]
[1617762679508,0.422,2103.6,2103.5,11.1386]
[1617762681912,0.422,2103.6,2103.5,17.17523352]
[1617762682312,0.422,2103.6,2103.5,11.1386]
[1617762683716,13.4168,2104.6,2103.5,11.1386]
[1617762684115,13.4168,2104.6,2103.8,4.93532925]
[1617762684615,13.4168,2104.6,2103.9,5.8]
[1617762685014,13.4168,2104.6,2104.5,2.90695]
[1617762685614,13.4168,2104.6,2104.5,8.76695]
[1617762688521,15.4168,2104.6,2104.5,8.76695]
[1617762690723,17.2877,2104.6,2104.5,8.76695]
[1617762692423,47.2877,2104.6,2103.5,4.94158482]
[1617762692623,47.2877,2104.6,2103.4,4.94207406]
[1617762692823,47.2877,2104.6,2104.5,5.75]
[1617762693023,47.2877,2104.6,2103.6,5.87]
[1617762693024,50.19465,2104.6,2103.9,2.90695]
[1617762693826,50.19465,2104.6,2104.0,5.91]
[1617762695027,2.90695,2104.1,2104.0,5.91]
[1617762695226,7.06935,2104.1,2104.0,5.91]
[1617762704942,20.06935,2104.1,2104.0,5.91]
[1617762709049,50.06935,2104.1,2104.0,5.91]
[1617762709255,50.06935,2104.1,2104.0,2.6625]
[1617762709849,50.06935,2104.1,2104.0,0.0001]
[1617762710449,50.06935,2104.1,2101.9,4.95632834]
[1617762711149,2.0,2103.9,2103.0,2.90695]
[1617762711349,2.0,2103.7,2103.0,2.90695]
[1617762711549,2.0,2103.5,2103.0,2.90695]
[1617762711749,32.0,2103.5,2103.1,5.84]
[1617762713250,2.90695,2103.2,2103.1,5.84]
[1617762714050,4.90695,2103.2,2103.1,5.84]
[1617762724364,2.90695,2103.2,2103.1,5.84]
[1617762724966,4.90695,2103.2,2103.1,5.84]
[1617762725167,13.0295,2104.0,2103.1,5.84]
[1617762725368,15.93645,2104.0,2103.9,2.90695]
[1617762725767,15.93645,2104.0,2103.9,8.78695]
[1617762726167,17.93645,2104.0,2103.9,8.78695]
[1617762732373,20.63225,2104.0,2103.9,8.78695]
[1617762734275,50.63225,2104.0,2103.9,5.88]
[1617762735376,51.59145,2104.0,2103.9,5.88]
[1617762736776,50.63225,2104.0,2103.9,5.88]
[1617762736977,50.63225,2104.0,2102.9,2.90695]
[1617762737577,2.90695,2103.0,2102.9,2.90695]
[1617762737977,2.90695,2103.0,2102.9,8.60695]
[1617762764103,4.90695,2103.0,2102.9,8.60695]
[1617762764304,2.90695,2103.0,2102.9,8.60695]
[1617762765307,4.90695,2103.0,2102.9,8.60695]
[1617762765507,2.90695,2103.0,2102.9,8.60695]
[1617762766907,32.90695,2103.0,2101.0,2.0]
[1617762767108,32.90695,2103.0,2102.9,5.4398]
[1617762767511,32.90695,2103.0,2101.1,5.84]
[1617762767711,32.90695,2103.0,2102.9,5.8]
[1617762767910,34.90695,2103.0,2102.9,5.8]
[1617762768111,34.90695,2103.0,2102.0,2.90695]
[1617762768311,34.90695,2103.0,2102.9,4.64]
[1617762768710,34.90695,2103.0,2102.0,2.90695]
[1617762769110,34.90695,2103.0,2102.1,5.78]
[1617762769812,32.0,2103.0,2102.1,5.78]
[1617762770009,5.76355,2102.2,2102.1,5.78]
[1617762795540,7.76355,2102.2,2102.1,5.78]
[1617762795940,5.76355,2102.2,2102.1,5.78]
[1617762807548,5.76355,2102.2,2100.7,5.72]
[1617762807848,5.76355,2102.2,2102.1,5.83]
[1617762808048,7.76355,2102.2,2102.1,5.83]
[1617762808250,5.76355,2102.2,2101.3,2.90695]
[1617762808449,5.76355,2102.2,2102.1,5.96]
[1617762808849,5.76355,2102.2,2101.4,5.96]
[1617762809053,5.76355,2102.2,2101.3,2.90695]
[1617762809250,5.76355,2102.2,2101.4,5.83]
[1617762810253,2.90695,2101.5,2101.4,5.83]
[1617762811354,5.85865,2101.5,2101.4,5.83]
[1617762817072,5.85865,2101.5,2100.4,5.84]
[1617762818272,2.9517,2101.5,2101.0,2.90695]
[1617762818672,13.2087,2102.1,2101.0,2.90695]
[1617762818872,13.2087,2102.1,2101.1,5.98]
[1617762819572,43.2087,2102.1,2101.1,5.98]
[1617762820274,2.90695,2101.2,2101.1,5.98]
[1617762820473,5.55555,2101.2,2101.1,5.98]
[1617762844709,2.90695,2101.2,2101.1,5.98]
[1617762862431,13.2087,2102.1,2101.1,5.98]
[1617762862633,13.2087,2102.1,2101.8,2.90695]
[1617762863032,13.2087,2102.1,2101.8,4.77055]
[1617762863232,13.2087,2102.1,2101.9,5.96]
[1617762864735,2.90695,2102.0,2101.9,5.96]
[1617762875450,2.90695,2102.0,2100.9,5.97]
[1617762875849,5.58105,2102.0,2101.9,5.75]
[1617762876051,5.58105,2102.0,2101.0,5.84]
[1617762876449,5.58105,2102.0,2100.9,5.89]
[1617762876656,5.58105,2102.0,2101.1,5.83]
[1617762876853,16.0784,2102.5,2101.1,5.83]
[1617762877056,16.0784,2102.5,2101.0,5.75]
[1617762877250,16.0784,2102.5,2101.2,5.66]
[1617762877452,2.0,2102.4,2101.2,5.66]
[1617762877651,2.0,2102.4,2101.0,5.85]
[1617762878853,2.90695,2101.1,2101.0,5.85]
[1617762890868,12.7719,2102.2,2101.0,5.85]
[1617762892067,12.7719,2102.2,2101.0,7.85]
[1617762892870,12.7719,2102.2,2101.5,4.97315]
[1617762893269,12.7719,2102.2,2101.6,5.93]
[1617762894872,2.90695,2101.7,2101.6,5.93]
[1617762906385,12.7719,2102.2,2101.6,8.4103]
[1617762906786,15.67885,2102.2,2102.1,2.90695]
[1617762907187,15.67885,2102.2,2102.1,5.81705]
[1617762907388,15.67885,2102.2,2102.1,11.58705]
[1617762907690,2.90695,2102.2,2102.1,11.58705]
[1617762919602,2.90695,2102.2,2102.1,8.6801]
[1617762919802,5.55125,2102.2,2102.1,5.77]
[1617762920103,5.55125,2102.2,2101.0,4.79]
[1617762920502,5.55125,2102.2,2102.1,5.84]
[1617762920702,5.55125,2102.2,2101.1,5.71]
[1617762920904,2.6443,2102.2,2101.6,2.90695]
[1617762921102,2.6443,2102.2,2102.1,5.89]
[1617762921504,2.6443,2102.2,2101.7,5.12]
[1617762921703,2.3956,2102.7,2102.1,5.91]
[1617762922103,2.3956,2102.7,2101.7,5.74]
[1617762922404,2.0,2102.6,2101.7,5.74]
[1617762922904,2.90695,2101.8,2101.7,5.74]
[1617762932015,2.90695,2101.8,2100.4,5.02670369]
[1617762932016,2.90695,2101.8,2100.6,5.96]
[1617762932216,2.90695,2101.8,2100.5,0.18]
[1617762932415,2.90695,2101.8,2101.7,3.88]
[1617762932817,2.90695,2101.8,2100.4,5.77]
[1617762933015,2.0,2102.0,2101.7,5.72]
[1617762933415,2.0,2102.0,2101.1,5.81]
[1617762935017,2.90695,2101.2,2101.1,5.81]
[1617762964957,12.953,2102.4,2101.1,5.81]
[1617762965157,12.953,2102.4,2101.2,2.0]
[1617762965560,12.953,2102.4,2102.2,4.92855]
[1617762965759,12.953,2102.4,2102.3,5.78]
[1617762965960,13.6206,2102.5,2102.3,5.78]
[1617762967462,2.90695,2102.4,2102.3,5.78]
[1617762969969,2.90695,2102.4,2102.0,5.88]
[1617762971571,2.90695,2102.1,2102.0,5.88]
[1617762983288,13.3877,2103.4,2102.0,5.88]
[1617762983489,13.3877,2103.4,2102.0,7.6967]
[1617762983692,13.3877,2103.4,2102.9,2.90695]
[1617762983888,13.3877,2103.4,2102.9,5.83215]
[1617762984089,13.3877,2103.4,2103.0,5.94]
[1617762985794,2.90695,2103.1,2103.0,5.94]
[1617762985992,2.90695,2103.1,2102.6,2.90695]
[1617762986192,2.90695,2103.1,2102.7,0.4]
[1617762986393,2.90695,2103.1,2103.0,5.01]
[1617762986594,2.90695,2103.1,2102.6,2.90695]
[1617762986795,2.90695,2103.1,2102.7,5.8]
[1617762986994,2.90695,2103.1,2103.0,5.92]
[1617762987394,2.90695,2103.1,2102.7,5.74]
[1617762987593,2.90695,2103.1,2103.0,5.8]
[1617762987995,2.90695,2103.1,2102.7,5.92]
[1617762988197,2.90695,2103.1,2103.0,5.87]
[1617762988596,2.90695,2103.1,2102.7,5.81]
[1617762988797,2.90695,2103.1,2103.0,5.75]
[1617762989196,2.90695,2103.1,2102.7,5.76]
[1617762989396,2.90695,2103.1,2103.0,5.82]
[1617762989797,2.90695,2103.1,2102.7,5.95]
[1617762991802,2.90695,2102.8,2102.7,5.95]
[1617763010527,15.658,2104.0,2102.7,5.95]
[1617763010727,13.658,2104.0,2102.7,8.7883]
[1617763012029,13.658,2104.0,2103.0,2.90695]
[1617763012429,13.658,2104.0,2103.1,5.9]
[1617763014232,2.90695,2103.2,2103.1,5.9]
[1617763049673,13.658,2104.0,2103.1,5.9]
[1617763050174,13.658,2104.0,2102.8,2.8345]
[1617763050372,13.658,2104.0,2102.9,5.85]
[1617763050573,13.658,2104.0,2103.2,5.98]
[1617763050772,13.658,2104.0,2102.8,2.8345]
[1617763050973,13.658,2104.0,2103.2,2.90695]
[1617763051175,13.658,2104.0,2103.3,5.8]
[1617763052978,2.90695,2103.4,2103.3,5.8]
[1617763081207,13.0,2104.1,2103.3,5.8]
[1617763081404,2.90695,2103.7,2103.3,8.528]
[1617763081604,2.90695,2103.7,2103.4,2.0]
[1617763082105,2.90695,2103.7,2103.6,2.0]
[1617763082707,2.90695,2103.7,2103.6,7.85]
[1617763083309,2.90695,2103.7,2103.6,10.75695]
[1617763083507,2.90695,2103.7,2103.6,8.75695]
[1617763084407,13.0,2104.1,2103.6,10.75695]
[1617763085308,15.90695,2104.1,2104.0,2.90695]
[1617763085511,15.90695,2104.1,2104.0,4.73805]
[1617763085709,15.90695,2104.1,2104.0,10.52805]
[1617763087810,13.0,2104.1,2104.0,10.52805]
[1617763088409,13.0,2104.1,2104.0,12.52805]
[1617763092015,5.8474,2104.1,2104.0,12.52805]
[1617763092216,4.6009,2104.1,2104.0,12.52805]
[1617763092416,3.5988,2104.1,2104.0,12.52805]
[1617763094717,5.9494,2104.1,2104.0,10.69695]
[1617763095718,5.9494,2104.1,2104.0,8.69695]
[1617763097218,3.5988,2104.1,2104.0,8.69695]
[1617763098120,3.5988,2104.1,2104.0,10.69695]
[1617763099923,2.6608,2104.1,2104.0,10.69695]
[1617763100124,1.7158,2104.1,2104.0,10.69695]
[1617763100530,0.0639,2104.1,2104.0,10.69695]
[1617763103833,0.0001,2104.1,2104.0,10.69695]
[1617763110041,0.0001,2104.1,2104.0,12.55305]
[1617763112048,0.0001,2104.1,2104.0,10.69695]
[1617763136685,1.5222,2105.5,2104.0,10.69695]
[1617763137887,1.5222,2105.5,2105.4,2.90695]
[1617763138388,1.5222,2105.5,2105.4,8.73695]
[1617763143399,4.2467,2105.5,2105.4,8.73695]
[1617763151908,16.2467,2105.5,2105.4,8.73695]
[1617763158016,84.6562,2105.5,2105.4,8.73695]
[1617763158216,84.6562,2105.5,2105.4,5.83]
[1617763158616,84.6562,2105.5,2104.2,5.93]
[1617763158820,84.6562,2105.5,2104.2,7.93]
[1617763159018,84.6562,2105.5,2105.4,5.85]
[1617763159419,84.6562,2105.5,2104.3,5.89]
[1617763159617,84.6562,2105.5,2105.4,5.88]
[1617763160016,84.6562,2105.5,2104.3,5.78]
[1617763160217,84.6562,2105.5,2105.4,8.86695]
[1617763160619,84.6562,2105.5,2105.4,2.90695]
[1617763160820,84.6562,2105.5,2105.4,8.74695]
[1617763162120,87.56315,2105.5,2105.4,8.74695]
[1617763162921,86.04095,2105.5,2105.4,8.74695]
[1617763163723,86.04095,2105.5,2105.4,5.84]
[1617763164124,1.5222,2105.4,2104.5,2.90695]
[1617763164526,1.5222,2105.4,2104.6,5.76]
[1617763165331,1.5222,2105.4,2104.6,7.9397]
[1617763166228,1.5222,2105.4,2105.3,5.38255]
[1617763166627,1.5222,2105.4,2105.3,11.30255]
[1617763174435,1.5222,2105.4,2105.3,13.30255]
[1617763175039,11.6924,2105.5,2105.3,13.30255]
[1617763175237,10.2671,2105.5,2105.3,13.30255]
[1617763175438,7.9784,2105.5,2105.3,13.30255]
[1617763175637,6.4265,2105.5,2105.3,13.30255]
[1617763175839,5.3896,2105.5,2105.3,13.30255]
[1617763176841,2.8028,2105.5,2105.3,13.30255]
[1617763177841,2.5868,2105.5,2105.3,18.25866447]
[1617763178241,0.8403,2105.5,2105.3,18.25866447]
[1617763178441,2.90695,2107.3,2105.3,18.25866447]
[1617763178642,2.90695,2107.3,2105.3,13.30255]
[1617763179542,12.9518,2107.7,2105.3,13.30255]
[1617763180344,12.9518,2107.7,2107.6,2.90695]
[1617763180544,4.0,2107.8,2107.6,2.90695]
[1617763180742,4.0,2107.8,2107.6,8.63695]
[1617763182342,2.90695,2107.7,2107.6,8.63695]
[1617763187649,5.61995,2107.7,2107.6,5.73]
[1617763188250,5.61995,2107.7,2106.0,5.96]
[1617763188451,2.0,2107.6,2106.5,2.90695]
[1617763189057,2.0,2107.4,2106.6,5.97]
[1617763189257,32.0,2107.4,2106.6,5.97]
[1617763189658,32.0,2107.4,2104.4,2.0]
[1617763189858,32.0,2107.4,2106.7,2.52]
[1617763190059,2.0,2107.2,2105.0,5.74]
[1617763190259,4.8516,2107.2,2104.9,0.9464]
[1617763190459,17.7739,2107.2,2106.8,2.01]
[1617763190659,17.7739,2107.2,2106.1,2.90695]
[1617763190858,17.7739,2107.2,2106.2,5.94]
[1617763191058,17.7739,2107.2,2106.9,2.84]
[1617763191258,17.7739,2107.2,2106.1,2.90695]
[1617763191460,4.8516,2107.2,2106.3,5.95]
[1617763191658,2.0,2107.2,2107.0,5.87]
[1617763191858,2.0,2107.2,2106.2,5.97]
[1617763192058,2.0,2107.2,2106.4,5.9]
[1617763192260,2.0,2107.2,2107.1,5.92]
[1617763192459,2.0,2107.2,2106.2,5.72]
[1617763192659,4.90695,2107.2,2107.1,2.90695]
[1617763192859,4.90695,2107.2,2107.1,8.72695]
[1617763196466,2.0,2107.7,2107.1,8.72695]
[1617763196665,2.0,2107.7,2107.6,2.90695]
[1617763197067,2.0,2107.7,2107.6,8.67695]
[1617763198669,4.90695,2107.7,2107.6,8.67695]
[1617763200069,4.90695,2107.7,2107.6,5.77]
[1617763200469,4.90695,2107.7,2106.2,5.72]
[1617763200670,4.90695,2107.7,2106.1,0.9408]
[1617763200671,4.2938,2107.7,2107.6,5.9]
[1617763201070,4.2938,2107.7,2107.2,5.94]
[1617763201270,4.2938,2107.7,2107.6,5.93]
[1617763201671,2.0,2107.7,2107.2,5.69]
[1617763202071,2.0,2107.7,2107.6,5.87]
[1617763202269,2.0,2107.7,2107.2,5.89]
[1617763202670,2.0,2107.7,2107.6,5.83]
[1617763202870,2.0,2107.7,2107.4,2.90695]
[1617763203071,2.0,2107.7,2107.5,3.37]
[1617763203270,2.0,2107.7,2107.6,5.95]
[1617763203470,2.0,2107.7,2107.4,2.90695]
[1617763203670,2.0,2107.7,2107.5,5.87]
[1617763203870,2.0,2107.7,2107.6,5.71]
[1617763204070,2.0,2107.7,2107.4,2.90695]
[1617763204471,2.0,2107.7,2107.6,5.86]
[1617763204671,4.90695,2107.7,2107.4,2.90695]
[1617763205070,4.90695,2107.7,2107.6,5.7]
[1617763205271,4.90695,2107.7,2107.5,5.85]
[1617763205471,4.90695,2107.7,2107.4,2.90695]
[1617763205672,4.90695,2107.7,2107.6,5.71]
[1617763206076,4.90695,2107.7,2107.5,5.75]
[1617763208679,4.90695,2107.7,2107.5,6.7077]
[1617763208878,4.90695,2107.7,2107.5,5.75]
[1617763211880,2.90695,2107.7,2107.5,5.75]
[1617763227499,4.0,2107.9,2107.5,5.75]
[1617763228902,4.0,2107.9,2107.8,2.90695]
[1617763229101,4.0,2107.9,2107.8,8.82695]
[1617763251523,15.0,2107.9,2107.8,8.82695]
[1617763256231,11.0,2107.9,2107.8,8.82695]
[1617763256430,15.0,2107.9,2107.8,8.82695]
[1617763259837,17.8417,2107.9,2107.8,8.82695]
[1617763261438,20.74865,2107.9,2107.8,5.92]
[1617763261837,20.74865,2107.9,2107.6,5.89]
[1617763262037,2.0,2107.8,2107.5,2.90695]
[1617763262237,20.74865,2107.9,2107.5,2.90695]
[1617763262437,20.74865,2107.9,2107.7,5.77]
[1617763262637,20.74865,2107.9,2106.1,0.9408]
[1617763262638,52.74865,2107.9,2107.6,5.87]
[1617763262838,52.74865,2107.9,2107.6,1.0838]
[1617763263038,52.74865,2107.9,2105.1,2.0]
[1617763263239,52.74865,2107.9,2104.9,4.93252206]
[1617763263436,49.8417,2107.9,2106.2,2.90695]
[1617763263839,12.7092,2107.8,2106.3,2.87]
[1617763264039,2.0,2107.7,2106.3,2.87]
[1617763265539,2.0,2107.7,2106.7,2.90695]
[1617763265939,2.0,2107.7,2106.8,5.93]
[1617763267240,12.7092,2107.8,2106.8,5.93]
[1617763267443,14.7092,2107.8,2107.1,2.90695]
[1617763267841,14.7092,2107.8,2107.2,5.82]
[1617763269444,14.7092,2107.8,2107.5,2.90695]
[1617763269647,12.7092,2107.8,2107.5,2.90695]
[1617763269845,15.0,2107.9,2107.6,5.97]
[1617763271548,2.90695,2107.7,2107.6,5.97]
[1617763275557,2.90695,2107.7,2107.1,2.90695]
[1617763275960,2.90695,2107.7,2107.2,5.81]
[1617763277564,15.0,2107.9,2107.4,2.90695]
[1617763277965,15.0,2107.9,2107.5,5.82]
[1617763279567,2.90695,2107.6,2107.5,5.82]
[1617763279767,5.72315,2107.6,2107.5,5.82]
[1617763280368,7.72315,2107.6,2107.5,5.82]
[1617763281875,5.72315,2107.6,2107.5,5.82]
[1617763282973,7.72315,2107.6,2107.5,5.82]
[1617763283975,37.72315,2107.6,2107.1,5.75]
[1617763284375,37.72315,2107.6,2107.5,5.53]
[1617763284575,37.72315,2107.6,2107.2,5.74]
[1617763284975,37.72315,2107.6,2105.2,2.0]
[1617763285377,37.72315,2107.6,2106.3,5.93]
[1617763285576,34.8162,2107.6,2106.5,2.90695]
[1617763285777,12.9834,2107.5,2106.5,2.90695]
[1617763285976,2.0,2107.3,2106.6,5.9]
[1617763287678,2.90695,2106.7,2106.6,5.9]
[1617763292879,2.90695,2106.7,2105.0,5.82]
[1617763293279,2.90695,2106.7,2106.6,5.88]
[1617763293482,2.90695,2106.7,2105.0,5.91]
[1617763293681,32.0,2106.7,2105.0,5.91]
[1617763294079,32.0,2106.7,2104.3,6.95302842]
[1617763294279,32.0,2106.7,2105.1,5.79]
[1617763294680,32.0,2106.7,2104.4,5.85]
[1617763294881,72.1602,2106.0,2105.2,5.95]
[1617763295081,74.605,2106.0,2105.2,5.95]
[1617763295281,74.605,2106.0,2104.5,5.81]
[1617763295481,74.605,2106.0,2105.3,5.71]
[1617763295681,2.90695,2105.4,2105.3,8.61695]
[1617763295881,5.44225,2105.4,2105.3,2.90695]
[1617763296082,5.44225,2105.4,2105.3,8.78695]
[1617763297182,5.44225,2105.4,2105.3,5.88]
[1617763297584,5.44225,2105.4,2104.0,5.72]
[1617763297785,2.5353,2105.4,2104.7,2.90695]
[1617763298085,2.5353,2105.4,2105.3,5.94]
[1617763298286,74.3004,2105.4,2104.8,3.22]
[1617763298688,74.3004,2105.4,2105.3,5.7]
[1617763298888,74.3004,2105.4,2104.8,5.69]
[1617763299289,74.3004,2105.4,2104.8,7.8523]
[1617763299690,74.3004,2105.4,2105.3,2.90695]
[1617763300294,74.3004,2105.4,2105.3,8.77695]
[1617763304696,74.3004,2105.4,2105.3,5.87]
[1617763305195,74.3004,2105.4,2103.0,2.0]
[1617763305196,74.3004,2105.4,2103.5,5.97]
[1617763305396,74.3004,2105.4,2105.3,5.88]
[1617763305796,74.3004,2105.4,2105.0,2.90695]
[1617763305996,74.3004,2105.4,2105.3,5.7]
[1617763306399,74.3004,2105.4,2105.1,3.6]
[1617763306597,74.3004,2105.4,2105.0,2.90695]
[1617763306797,74.3004,2105.4,2105.3,5.71]
[1617763306998,74.3004,2105.4,2105.1,5.77]
[1617763307397,74.3004,2105.4,2105.3,5.83]
[1617763307597,74.3004,2105.4,2105.1,5.79]
[1617763307798,2.90695,2105.2,2105.1,5.79]
[1617763308001,2.90695,2105.2,2105.0,5.16115]
[1617763308197,2.90695,2105.2,2105.1,5.94]
[1617763311804,71.7651,2105.4,2105.1,5.94]
[1617763312005,71.7651,2105.4,2105.1,8.1395]
[1617763313809,71.7651,2105.4,2105.3,2.90695]
[1617763314209,71.7651,2105.4,2105.3,8.62695]
[1617763315811,71.7651,2105.4,2105.3,10.80115]
[1617763316013,70.1081,2105.4,2105.3,10.80115]
[1617763318016,70.1081,2105.4,2105.3,8.62695]
[1617763325126,2.0,2107.2,2105.3,8.62695]
[1617763325323,2.0,2107.2,2105.3,10.66935]
[1617763325522,41.0,2107.9,2105.3,10.66935]
[1617763325523,2.0,2107.4,2105.3,10.66935]
[1617763325925,2.0,2107.4,2106.2,2.90695]
[1617763326122,15.2635,2107.5,2106.2,2.90695]
[1617763326323,15.2635,2107.5,2106.3,5.73]
[1617763328023,2.0,2107.5,2106.9,2.90695]
[1617763328225,2.0,2107.5,2107.0,5.93]
[1617763329126,2.0,2107.7,2107.0,5.93]
[1617763329926,2.90695,2107.1,2107.0,5.93]
[1617763363793,5.81515,2107.1,2107.0,5.93]
[1617763366594,7.81515,2107.1,2107.0,5.93]
[1617763366794,6.76295,2107.1,2106.5,5.77]
[1617763366994,5.81515,2107.1,2106.5,5.77]
[1617763367193,5.81515,2107.1,2106.4,2.90695]
[1617763367194,5.81515,2107.1,2107.0,5.74]
[1617763367393,5.81515,2107.1,2106.5,5.79]
[1617763367794,5.81515,2107.1,2107.0,5.82]
[1617763367995,5.81515,2107.1,2106.5,5.75]
[1617763368394,2.9082,2107.1,2107.0,5.94]
[1617763368594,57.2768,2107.4,2106.7,2.90695]
[1617763368795,59.2768,2107.4,2106.8,1.51]
[1617763368994,59.2768,2107.4,2107.0,5.88]
[1617763369194,59.2768,2107.4,2106.7,2.90695]
[1617763369395,59.2768,2107.4,2106.8,5.8]
[1617763369597,59.2768,2107.4,2107.1,5.8]
[1617763369796,59.2768,2107.4,2106.7,2.90695]
[1617763369997,57.2768,2107.4,2106.8,5.98]
[1617763370197,57.2768,2107.4,2107.2,5.72]
[1617763370395,2.0,2107.8,2106.7,2.90695]
[1617763370597,2.90695,2107.3,2106.8,5.94]
[1617763370900,4.90695,2107.3,2106.8,5.94]
[1617763371599,4.90695,2107.3,2105.9,5.96]
[1617763371797,7.19985,2107.3,2105.9,5.96]
[1617763371999,7.19985,2107.3,2106.9,5.93]
[1617763372200,7.19985,2107.3,2105.3,5.91]
[1617763372599,4.2929,2107.3,2107.0,5.76]
[1617763372798,4.2929,2107.3,2106.1,2.90695]
[1617763372998,4.2929,2107.3,2106.2,5.87]
[1617763373199,4.2929,2107.3,2107.1,5.78]
[1617763373399,4.2929,2107.3,2106.1,2.90695]
[1617763373598,4.2929,2107.3,2106.3,5.87]
[1617763373798,4.2929,2107.3,2107.2,5.87]
[1617763374000,81.6637,2107.3,2106.1,2.90695]
[1617763374205,81.6637,2107.3,2106.4,5.92]
[1617763374407,81.6637,2107.3,2107.2,5.92]
[1617763374605,79.6637,2107.3,2106.4,2.90695]
[1617763374806,79.6637,2107.3,2106.5,5.96]
[1617763375005,79.6637,2107.3,2107.2,5.75]
[1617763375202,79.6637,2107.3,2106.4,2.90695]
[1617763375402,79.6637,2107.3,2106.5,5.72]
[1617763376505,2.90695,2106.6,2106.5,5.72]
[1617763386714,77.3708,2107.3,2106.5,5.72]
[1617763386914,77.3708,2107.3,2106.5,8.0542]
[1617763387116,77.3708,2107.3,2106.5,2.3342]
[1617763387315,77.3708,2107.3,2106.6,2.90695]
[1617763387518,77.3708,2107.3,2106.6,8.81695]
[1617763387917,77.3708,2107.3,2106.6,5.91]
[1617763388418,77.3708,2107.3,2105.9,5.84]
[1617763388620,77.3708,2107.3,2106.0,4.2785]
[1617763388820,77.3708,2107.3,2106.0,5.2239]
[1617763389020,77.3708,2107.3,2106.1,5.82]
[1617763389219,77.3708,2107.3,2106.6,2.90695]
[1617763389619,77.3708,2107.3,2106.7,5.76]
[1617763391622,2.90695,2106.8,2106.7,5.76]
[1617763394826,2.90695,2106.8,2105.7,5.84]
[1617763395226,2.90695,2106.8,2106.7,5.9]
[1617763395427,2.90695,2106.8,2105.8,5.78]
[1617763395626,4.9704,2107.0,2106.0,2.90695]
[1617763395826,4.9704,2107.0,2106.7,5.83]
[1617763396026,4.9704,2107.0,2106.1,0.69]
[1617763396327,4.9704,2107.0,2106.0,2.90695]
[1617763396527,4.9704,2107.0,2106.8,5.93]
[1617763396727,5.9076,2107.0,2106.1,5.87]
[1617763396927,4.9704,2107.0,2106.0,2.90695]
[1617763397326,4.9704,2107.0,2106.1,5.89]
[1617763397528,2.90695,2106.2,2106.1,5.89]
[1617763401831,76.0395,2106.6,2106.1,7.8404]
[1617763403635,76.0395,2106.6,2106.5,2.90695]
[1617763404035,76.0395,2106.6,2106.5,8.64695]
[1617763404837,76.0395,2106.6,2106.5,5.74]
[1617763405139,76.0395,2106.6,2105.3,5.86]
[1617763405343,76.0395,2106.6,2105.4,2.0]
[1617763405539,76.0395,2106.6,2106.5,5.81]
[1617763405739,76.0395,2106.6,2106.4,2.90695]
[1617763406141,76.0395,2106.6,2106.5,5.83]
[1617763406541,76.0395,2106.6,2106.4,2.90695]
[1617763406741,76.0395,2106.6,2106.5,5.95]
[1617763407844,78.94645,2106.6,2106.5,5.95]
[1617763408548,2.90695,2106.6,2106.5,5.95]
[1617763417558,2.90695,2106.6,2105.4,2.0]
[1617763417758,73.4916,2107.0,2106.5,5.87]
[1617763418159,73.4916,2107.0,2106.3,2.90695]
[1617763418358,73.4916,2107.0,2106.6,5.69]
[1617763418759,73.4916,2107.0,2106.3,2.90695]
[1617763418959,73.4916,2107.0,2106.7,5.82]
[1617763419361,73.4916,2107.0,2106.4,5.89]
[1617763419762,2.90695,2106.5,2106.4,5.89]
[1617763424165,5.39625,2106.5,2106.4,5.89]
[1617763430173,5.39625,2106.5,2106.2,5.86]
[1617763430574,5.39625,2106.5,2106.4,5.78]
[1617763430774,5.39625,2106.5,2106.2,5.86]
[1617763431174,5.39625,2106.5,2106.4,5.8]
[1617763431374,5.39625,2106.5,2106.2,5.84]
[1617763434278,5.39625,2106.5,2105.8,5.71]
[1617763434478,5.39625,2106.5,2106.3,5.85]
[1617763434878,5.39625,2106.5,2105.8,5.74]
[1617763435079,5.39625,2106.5,2106.4,5.85]
[1617763435479,2.90695,2106.5,2105.8,5.92]
[1617763435680,2.90695,2106.5,2106.4,5.91]
[1617763435880,2.90695,2106.5,2106.4,8.81695]
[1617763436080,2.90695,2106.5,2106.4,2.90695]
[1617763436383,2.90695,2106.5,2106.4,8.72695]
[1617763441195,70.1013,2107.5,2106.4,11.11185]
[1617763441993,70.1013,2107.5,2107.4,2.90695]